fUSD/lending_fUSD_20240918
["ID","MTS","AMOUNT","RATE_DAILY","PERIOD"]
[338415823,1726621833044,-1000.0,0.00013366,2]
[338415824,1726621833053,-1000.0,0.00013366,2]
[338415825,1726621833062,-1000.0,0.00013366,2]
[338415826,1726621833072,-1000.0,0.00013366,2]
[338415827,1726621833081,-1000.0,0.00013366,2]
[338415828,1726621833090,-1000.0,0.00013366,2]
[338415829,1726621833099,-1000.0,0.00013366,2]
[338415830,1726621833108,-1000.0,0.00013366,2]
[338415831,1726621833119,-1000.0,0.00013366,2]
[338415832,1726621833128,-1000.0,0.00013366,2]
[338415833,1726621833137,-1000.0,0.00013366,2]
[338415834,1726621833146,-1000.0,0.00013366,2]
[338415835,1726621833156,-1000.0,0.00013366,2]
[338415836,1726621833165,-268.10939612,0.00013366,2]
[338415837,1726621833177,-731.89060388,0.00013366,2]
[338415838,1726621833187,-150.0,0.00013543,2]
[338415839,1726621833196,-150.0,0.00013558,2]
[338415840,1726621833206,-150.0,0.00013563,2]
[338415841,1726621833215,-150.0,0.00013589,2]
[338415842,1726621833225,-222.0,0.0001359,2]
[338415843,1726621833234,-260.9313,0.000136,2]
[338415844,1726621833244,-388.78694114,0.000136,2]
[338415845,1726621833263,-891.78025886,0.000136,2]
[338415846,1726621833273,-258.85207942,0.000136,2]
[338415856,1726621838099,-741.14792058,0.000136,2]
[338415857,1726621838108,-150.0,0.00013619,2]
[338415858,1726621838118,-150.0,0.00013641,2]
[338415859,1726621838128,-168.0535,0.0001366,2]
[338415860,1726621838138,-150.0,0.00013671,2]
[338415861,1726621838148,-150.0,0.00013688,2]
[338415862,1726621838159,-250.65,0.00013689,2]
[338415863,1726621838169,-150.0,0.0001369,2]
[338415864,1726621838180,-250.65,0.0001369,2]
[338415865,1726621838190,-250.65,0.0001369,2]
[338415866,1726621838200,-250.65,0.0001369,2]
[338415867,1726621838210,-250.65,0.0001369,2]
[338415868,1726621838220,-250.65,0.0001369,2]
[338415869,1726621838230,-250.65,0.0001369,2]
[338415870,1726621838240,-250.65,0.0001369,2]
[338415871,1726621838250,-250.65,0.0001369,2]
[338415873,1726621838259,-714.44,0.00013699,2]
[338415875,1726621838269,-200.0,0.00013699,2]
[338415877,1726621838279,-150.01,0.00013699,2]
[338415879,1726621838288,-1632.75016504,0.00013699,2]
[338415884,1726621838328,-691.72536071,0.00013699,2]
[338415965,1726621840005,-426.52447425,0.00013699,2]
[338415966,1726621840015,-150.0,0.00013699,2]
[338415967,1726621840025,-2.52237915,0.000137,2]
[338415968,1726621840037,-147.47762085,0.000137,2]
[338415969,1726621840047,-612.84839103,0.000137,2]
[338415970,1726621840160,-517.05379565,0.000137,2]
[338415971,1726621840250,-2090.40897658,0.000137,2]
[338415972,1726621840262,-55031.22563674,0.000137,2]
[338415973,1726621840272,-1250.0,0.000137,2]
[338415974,1726621840282,-150.062,0.00013701,2]
[338415975,1726621840292,-151.0,0.00013704,2]
[338415976,1726621840302,-151.0,0.00013704,2]
[338415977,1726621840312,-151.0,0.00013704,2]
[338415978,1726621840322,-151.0,0.00013704,2]
[338415979,1726621840332,-204.543807,0.00013704,2]
[338415980,1726621840341,-150.0,0.0001372,2]
[338415981,1726621840351,-150.0,0.0001373,2]
[338415982,1726621840360,-151.0,0.00013773,2]
[338415983,1726621840374,-239.018741,0.00013773,2]
[338415984,1726621840385,-151.0,0.00013773,2]
[338415985,1726621840394,-198.035469,0.00013773,2]
[338415986,1726621840404,-250.65,0.00013787,2]
[338415987,1726621840414,-250.65,0.00013787,2]
[338415988,1726621840424,-500.0,0.00013789,2]
[338415989,1726621840434,-500.0,0.00013789,2]
[338415990,1726621840444,-250.65,0.00013795,2]
[338415991,1726621840453,-250.65,0.00013795,2]
[338415993,1726621840467,-11181.92,0.00013797,2]
[338415995,1726621840478,-151.0,0.000138,2]
[338415996,1726621840488,-680.479048,0.000138,2]
[338415998,1726621840497,-680.479048,0.000138,2]
[338416000,1726621840507,-151.0,0.000138,2]
[338416002,1726621840517,-151.0,0.000138,2]
[338416004,1726621840527,-151.0,0.000138,2]
[338416006,1726621840536,-151.0,0.000138,2]
[338416008,1726621840547,-151.0,0.000138,2]
[338416010,1726621840557,-2000.0,0.000138,2]
[338416012,1726621840566,-200.0,0.000138,2]
[338416014,1726621840576,-227.0,0.000138,2]
[338416016,1726621840585,-1000.0,0.000138,2]
[338416018,1726621840595,-12908.0,0.00013805,2]
[338416020,1726621840605,-250.65,0.0001382,2]
[338416022,1726621840614,-250.65,0.0001382,2]
[338416024,1726621840627,-250.65,0.0001382,2]
[338416026,1726621840636,-1000.0,0.0001383,2]
[338416028,1726621840645,-1000.0,0.0001383,2]
[338416030,1726621840654,-1000.0,0.0001383,2]
[338416031,1726621840664,-1000.0,0.0001383,2]
[338416033,1726621840674,-1000.0,0.0001383,2]
[338416035,1726621840683,-1000.0,0.0001383,2]
[338416037,1726621840693,-1000.0,0.0001383,2]
[338416038,1726621840703,-1000.0,0.0001383,2]
[338416039,1726621840712,-1000.0,0.0001383,2]
[338416040,1726621840721,-1000.0,0.0001383,2]
[338416041,1726621840731,-1000.0,0.0001383,2]
[338416042,1726621840740,-1000.0,0.0001383,2]
[338416043,1726621840750,-1000.0,0.0001383,2]
[338416044,1726621840759,-1000.0,0.0001383,2]
[338416045,1726621840768,-1000.0,0.0001383,2]
[338416046,1726621840778,-1000.0,0.0001383,2]
[338416047,1726621840788,-1000.0,0.0001383,2]
[338416048,1726621840797,-1000.0,0.0001383,2]
[338416049,1726621840808,-1135.9059,0.0001383,2]
[338416050,1726621840817,-1745.85253772,0.00013832,2]
[338416051,1726621840827,-250.65,0.00013866,2]
[338416052,1726621840837,-250.65,0.00013866,2]
[338416053,1726621840846,-250.65,0.00013866,2]
[338416054,1726621840855,-33233.673246,0.00013876,2]
[338416055,1726621840865,-1610.805947,0.00013876,2]
[338416056,1726621840876,-9929.6111785,0.00013876,2]
[338416057,1726621840888,-1130.54686907,0.00013876,2]
[338416059,1726621840914,-372.50946649,0.00013876,2]
[338416060,1726621840926,-906.23454086,0.00013876,2]
[338416066,1726621843697,-17268.42652662,0.00013876,2]
[338416067,1726621843729,-6144.19806446,0.00013876,2]
[338416068,1726621843740,-971.881423,0.00013876,2]
[338416069,1726621843750,-151.0,0.00013876,2]
[338416070,1726621843760,-152.16267,0.00013876,2]
[338416071,1726621843769,-151.542317,0.00013876,2]
[338416072,1726621843779,-151.0,0.00013876,2]
[338416073,1726621843788,-680.479048,0.00013876,2]
[338416074,1726621843798,-680.479048,0.00013876,2]
[338416075,1726621843808,-151.0,0.00013876,2]
[338416076,1726621843818,-169.1204,0.00013876,2]
[338416077,1726621843827,-151.0,0.00013876,2]
[338416078,1726621843838,-151.0,0.00013876,2]
[338416079,1726621843848,-151.0,0.00013876,2]
[338416080,1726621843858,-151.0,0.0001389,2]
[338416081,1726621843868,-680.479048,0.0001389,2]
[338416082,1726621843878,-680.479048,0.0001389,2]
[338416083,1726621843887,-151.0,0.0001389,2]
[338416084,1726621843898,-151.0,0.0001389,2]
[338416085,1726621843908,-151.0,0.0001389,2]
[338416086,1726621843917,-151.0,0.0001389,2]
[338416087,1726621843927,-10342.3065151,0.0001389,2]
[338416088,1726621843937,-239.796872,0.00013891,2]
[338416089,1726621843946,-151.0,0.00013891,2]
[338416090,1726621843955,-235.785428,0.00013891,2]
[338416091,1726621843965,-239.701916,0.00013891,2]
[338416092,1726621843975,-151.0,0.00013891,2]
[338416093,1726621843984,-235.785428,0.00013891,2]
[338416094,1726621843994,-151.0,0.00013891,2]
[338416095,1726621844003,-239.701916,0.00013891,2]
[338416096,1726621844012,-151.0,0.00013891,2]
[338416097,1726621844022,-151.0,0.00013891,2]
[338416098,1726621844031,-151.0,0.00013891,2]
[338416099,1726621844040,-151.0,0.00013891,2]
[338416100,1726621844050,-151.0,0.00013891,2]
[338416101,1726621844059,-151.0,0.00013891,2]
[338416102,1726621844070,-151.0,0.00013891,2]
[338416103,1726621844079,-151.0,0.00013891,2]
[338416104,1726621844089,-151.0,0.00013891,2]
[338416105,1726621844099,-11203.7,0.00013891,2]
[338416106,1726621844109,-11341.24,0.00013891,2]
[338416107,1726621844121,-299.57892947,0.00013894,2]
[338416108,1726621844130,-1557.3561166,0.00013894,2]
[338416109,1726621844140,-552.67507398,0.00013894,2]
[338416110,1726621844149,-151.0,0.00013895,2]
[338416111,1726621844159,-151.0,0.00013895,2]
[338416112,1726621844169,-151.0,0.00013895,2]
[338416113,1726621844178,-643.85728108,0.00013899,2]
[338416114,1726621844188,-151.0,0.000139,2]
[338416115,1726621844198,-221.685422,0.000139,2]
[338416116,1726621844208,-680.479048,0.000139,2]
[338416117,1726621844218,-680.479048,0.000139,2]
[338416118,1726621844228,-680.479048,0.000139,2]
[338416119,1726621844237,-680.479048,0.000139,2]
[338416120,1726621844247,-151.0,0.000139,2]
[338416121,1726621844256,-151.0,0.000139,2]
[338416122,1726621844265,-165.918967,0.000139,2]
[338416123,1726621844274,-151.0,0.000139,2]
[338416124,1726621844283,-151.0,0.000139,2]
[338416125,1726621844294,-151.0,0.000139,2]
[338416126,1726621844304,-151.0,0.000139,2]
[338416127,1726621844314,-151.0,0.000139,2]
[338416128,1726621844323,-151.0,0.000139,2]
[338416129,1726621844333,-151.0,0.000139,2]
[338416130,1726621844343,-151.0,0.000139,2]
[338416131,1726621844352,-151.0,0.000139,2]
[338416132,1726621844361,-151.472266,0.000139,2]
[338416133,1726621844371,-151.0,0.000139,2]
[338416134,1726621844380,-151.0,0.000139,2]
[338416135,1726621844390,-151.0,0.000139,2]
[338416136,1726621844400,-151.0,0.000139,2]
[338416137,1726621844410,-151.0,0.000139,2]
[338416138,1726621844421,-151.0,0.000139,2]
[338416139,1726621844431,-151.0,0.000139,2]
[338416140,1726621844441,-11094.78,0.000139,2]
[338416141,1726621844451,-175.83473958,0.00013904,2]
[338416142,1726621844467,-324.16526042,0.00013904,2]
[338416143,1726621844477,-500.0,0.00013904,2]
[338416144,1726621844486,-151.0,0.00013904,2]
[338416145,1726621844496,-372.7,0.00013916,2]
[338416146,1726621844507,-321.41395849,0.00013927,2]
[338416147,1726621844516,-165.58,0.0001393,2]
[338416148,1726621844525,-183.994761,0.00013933,2]
[338416149,1726621844535,-2000.0,0.00013938,2]
[338416150,1726621844546,-200.0,0.00013938,2]
[338416151,1726621844556,-1745.85253772,0.00013966,2]
[338416152,1726621844565,-596.02009172,0.0001399,2]
[338416153,1726621844580,-457.46955249,0.0001399,2]
[338416154,1726621844592,-6950.22205377,0.0001399,2]
[338416155,1726621844603,-524.26,0.0001399,2]
[338416156,1726621844614,-253.88923684,0.0001399,2]
[338416157,1726621844632,-451.22072221,0.0001399,2]
[338416158,1726621844644,-1109.22485807,0.0001399,2]
[338416159,1726621844654,-600.0,0.00013994,2]
[338416160,1726621844663,-267.79413793,0.00014,2]
[338416161,1726621844673,-150.0,0.00014,2]
[338416162,1726621844682,-173.0,0.00014,2]
[338416163,1726621844691,-500.0,0.00014,2]
[338416164,1726621844700,-155.31066673,0.00014,2]
[338416165,1726621844710,-539.842519,0.00014,2]
[338416166,1726621844719,-150.0,0.00014,2]
[338416167,1726621844728,-150.0,0.00014,2]
[338416168,1726621844737,-150.0,0.00014,2]
[338416169,1726621844747,-150.0,0.00014,2]
[338416170,1726621844756,-451.4061,0.00014,2]
[338416171,1726621844765,-150.0,0.00014,2]
[338416172,1726621844774,-150.0,0.00014,2]
[338416173,1726621844783,-150.0,0.00014,2]
[338416174,1726621844793,-103.56522534,0.00014,2]
[338416176,1726621846351,-46.43477466,0.00014,2]
[338416177,1726621846361,-150.0,0.00014,2]
[338416178,1726621846371,-150.0,0.00014,2]
[338416179,1726621846380,-150.0,0.00014,2]
[338416180,1726621846390,-150.0,0.00014,2]
[338416181,1726621846400,-150.0,0.00014,2]
[338416182,1726621846409,-1284.9236,0.00014,2]
[338416183,1726621846419,-1284.9236,0.00014,2]
[338416184,1726621846428,-1800.0,0.00014,15]
[338416185,1726621846438,-255.0,0.00014008,2]
[338416186,1726621846447,-6717.52692035,0.00014017,2]
[338416187,1726621877517,500.0,0.00011164,2]
[338416188,1726621904978,500.0,0.00011164,2]
[338416189,1726622051566,796.0,0.00012631,2]
[338416190,1726622073016,796.0,0.00012631,2]
[338416191,1726622094555,796.0,0.00012631,2]
[338416192,1726622115235,796.0,0.00012631,2]
[338416193,1726622136400,796.0,0.00012631,2]
[338416194,1726622157753,796.0,0.00012631,2]
[338416195,1726622179045,796.0,0.00012631,2]
[338416196,1726622200242,796.0,0.00012631,2]
[338416197,1726622221424,796.0,0.00012631,2]
[338416198,1726622242565,796.0,0.00012631,2]
[338416199,1726622264021,796.0,0.00012631,2]
[338416200,1726622285177,794.78528138,0.00012631,2]
[338416201,1726622306115,213.23,0.00010955,2]
[338416202,1726622453144,261.99147694,0.00012,2]
[338416203,1726622685039,155.53,0.00010959,2]
[338416204,1726622717372,500.0,0.00010181,2]
[338416205,1726622738079,256.18611462,0.00010181,2]
[338416206,1726622738453,500.0,9.085e-05,2]
[338416207,1726622740583,163.93215241,0.00011825,2]
[338416208,1726622740612,269.68008241,0.00011825,2]
[338416209,1726622766601,500.0,0.00010181,2]
[338416210,1726622852790,592.04,0.00012489,2]
[338416211,1726622890915,202.56,0.00010599,2]
[338416212,1726622896848,199.08,0.00012475,2]
[338416215,1726623019520,500.0,0.00010181,2]
[338416236,1726623038435,-373.429295,0.00012742,2]
[338416237,1726623038446,-175.22,0.00012806,2]
[338416238,1726623038455,-192.4096425,0.00012813,2]
[338416239,1726623038466,-57.5903575,0.00012813,2]
[338416240,1726623038476,-169.25,0.00012837,2]
[338416241,1726623038485,-202.56,0.00012862,2]
[338416242,1726623038494,-153.17142211,0.000129,2]
[338416243,1726623038506,-646.34582475,0.000129,2]
[338416254,1726623038660,-657.48628333,0.000129,2]
[338416256,1726623038669,-223.16032742,0.000129,2]
[338416257,1726623038679,-250.0,0.00012902,2]
[338416259,1726623038689,-38.06105199,0.00012921,2]
[338416324,1726623040369,-461.93894801,0.00012921,2]
[338416325,1726623040378,-377.80893875,0.00012921,2]
[338416326,1726623040391,-122.19106125,0.00012921,2]
[338416327,1726623040400,-331.27910362,0.00012973,2]
[338416328,1726623040410,-300.0,0.00012989,2]
[338416329,1726623040420,-396.48983513,0.0001299,2]
[338416330,1726623040528,-52.82416487,0.0001299,2]
[338416331,1726623040538,-1146.0,0.0001299,2]
[338416332,1726623040548,-4000.0,0.0001299,2]
[338416333,1726623040558,-157.41,0.0001299,2]
[338416334,1726623040570,-178.04296145,0.00012998,2]
[338416335,1726623040580,-53.51443184,0.00012999,2]
[338416336,1726623040592,-101.39063881,0.00012999,2]
[338416337,1726623040601,-150.0,0.00012999,2]
[338416338,1726623040611,-103.52163423,0.00013,2]
[338416339,1726623040623,-301.305,0.00013,2]
[338416340,1726623040635,-469.21336577,0.00013,2]
[338416341,1726623040645,-212.0515204,0.00013,2]
[338416343,1726623042300,-426020.67905802,0.00013,2]
[338416344,1726623042314,-65267.9696601,0.00013,2]
[338416352,1726623044401,-173.84944046,0.000129,2]
[338416353,1726623044411,-2406.304,0.0001299,2]
[338416354,1726623044420,-247218.26483822,0.00013,2]
[338416355,1726623044599,-1979.18188074,0.00013,2]
[338416356,1726623044611,-301.8067844,0.00013,2]
[338416357,1726623044870,-7021.01472604,0.00013,2]
[338416358,1726623044882,-19278.79368439,0.00013,2]
[338416359,1726623044894,-302.51826251,0.00013,2]
[338416360,1726623044963,-351.73608532,0.00013,2]
[338416361,1726623044974,-493.70742485,0.00013,2]
[338416368,1726623046379,-611.7165479,0.0001299,2]
[338416369,1726623046391,-431.885,0.0001299,2]
[338416370,1726623046403,-2138.00000118,0.0001299,2]
[338416371,1726623046414,-1135.31998,0.0001299,2]
[338416372,1726623046426,-1548.07847092,0.0001299,2]
[338416373,1726623046436,-10422.01205616,0.00013,2]
[338416374,1726623046447,-568.80754221,0.00013,2]
[338416375,1726623046459,-209773.07086473,0.00013,2]
[338416376,1726623046516,-1786.38103408,0.00013,2]
[338416377,1726623046527,-26034.63212078,0.00013,2]
[338416378,1726623046539,-6074.499065,0.00013,2]
[338416379,1726623046551,-250.10479714,0.00013,2]
[338416380,1726623046562,-815.6971792,0.00013,2]
[338416381,1726623046575,-5008.17589993,0.00013,2]
[338416382,1726623046587,-383.01048725,0.00013,2]
[338416383,1726623046652,-582.219,0.00013,2]
[338416389,1726623089946,500.0,0.00010181,2]
[338416390,1726623122558,500.0,0.00010181,2]
[338416391,1726623322561,159.94,0.00010959,2]
[338416392,1726623516670,182.3,0.00010822,2]
[338416393,1726623748115,274.98266532,0.00012624,2]
[338416394,1726623860016,796.0,0.00012631,2]
[338416395,1726623862977,177.7945773,0.00012242,2]
[338416396,1726623881266,796.0,0.00012631,2]
[338416397,1726623902379,796.0,0.00012631,2]
[338416398,1726623923629,796.0,0.00012631,2]
[338416399,1726623944748,796.0,0.00012631,2]
[338416400,1726623966412,796.0,0.00012631,2]
[338416402,1726624153377,150.5,0.0001459,120]
[338416403,1726624153855,150.5,0.0001458,120]
[338416404,1726624154378,239.81,0.0001457,120]
[338416405,1726624170326,173.18,0.00010904,2]
[338416420,1726624233405,-250.0,0.0001271,2]
[338416421,1726624233416,-144.81702012,0.00012741,4]
[338416422,1726624233428,-299.99,0.00012741,4]
[338416423,1726624233481,-4653.67297988,0.00012741,4]
[338416424,1726624233492,-168.81,0.00012755,2]
[338416425,1726624233503,-159.4,0.00012809,2]
[338416426,1726624233512,-326.35,0.00012832,2]
[338416427,1726624233522,-1000.0,0.00012859,2]
[338416428,1726624233531,-500.0,0.00012921,2]
[338416429,1726624233541,-315.65798482,0.00012921,2]
[338416430,1726624233551,-150.0,0.00012999,2]
[338416431,1726624233561,-45627.74791895,0.00013,2]
[338416432,1726624233570,-824.3,0.00013,2]
[338416433,1726624233581,-205.74,0.00013,2]
[338416434,1726624233590,-200.0,0.00013,2]
[338416435,1726624233600,-175.73377,0.00013,2]
[338416436,1726624233610,-200.0,0.0001313,2]
[338416437,1726624233620,-173.18,0.00013168,2]
[338416438,1726624233629,-796.0,0.00013186,2]
[338416439,1726624233639,-274.98266532,0.00013245,2]
[338416440,1726624233648,-1548.0,0.00013272,2]
[338416441,1726624233657,-1262.0,0.00013272,2]
[338416442,1726624233666,-448.0,0.00013272,2]
[338416443,1726624233675,-625.0,0.00013272,2]
[338416444,1726624233684,-934.685,0.00013272,2]
[338416445,1726624233694,-812.397,0.00013272,2]
[338416446,1726624233703,-559.703,0.00013272,2]
[338416447,1726624233712,-1902.0,0.00013272,2]
[338416448,1726624233722,-554.581,0.00013272,2]
[338416449,1726624233731,-248.729,0.00013272,2]
[338416450,1726624233741,-1916.0,0.00013272,2]
[338416451,1726624233751,-3346.0,0.00013272,2]
[338416452,1726624233760,-806.0,0.00013272,2]
[338416453,1726624233770,-1146.0,0.00013272,2]
[338416454,1726624233780,-150.0,0.00013272,2]
[338416455,1726624233790,-150.856,0.00013272,2]
[338416456,1726624233799,-5865.0,0.00013272,2]
[338416457,1726624233809,-450.335,0.00013313,2]
[338416458,1726624233819,-193.29882702,0.00013313,2]
[338416459,1726624233828,-1000.0,0.000136,2]
[338416460,1726624233838,-211.9333,0.00013604,2]
[338416461,1726624233848,-150.01,0.00013699,2]
[338416462,1726624233857,-2751.0,0.00013699,2]
[338416463,1726624233867,-608.45,0.00013699,2]
[338416464,1726624233877,-200.0,0.00013699,2]
[338416465,1726624233886,-1250.0,0.000137,2]
[338416466,1726624233896,-223.9422,0.000137,2]
[338416467,1726624233906,-19948.843114,0.00013704,2]
[338416468,1726624233916,-322.413552,0.00013704,2]
[338416469,1726624233926,-14313.537781,0.00013704,2]
[338416470,1726624233936,-644.322379,0.00013704,2]
[338416471,1726624233946,-184.050508,0.00013704,2]
[338416472,1726624233956,-583.29079,0.00013704,2]
[338416473,1726624233965,-7150.305329,0.00013704,2]
[338416474,1726624233976,-1531.1461,0.00013737,2]
[338416475,1726624233986,-150.0,0.00013749,2]
[338416476,1726624233996,-526.1529,0.00013756,2]
[338416477,1726624234005,-1331.85787444,0.00013776,2]
[338416478,1726624234015,-168.44332464,0.00013787,2]
[338416479,1726624234025,-352.5384598,0.0001379,2]
[338416480,1726624234034,-150.0,0.0001385,2]
[338416481,1726624234044,-150.0,0.00013863,2]
[338416482,1726624234054,-150.0,0.00013868,2]
[338416483,1726624234064,-19948.843114,0.00013876,2]
[338416484,1726624234073,-322.413552,0.00013876,2]
[338416485,1726624234083,-14313.537781,0.00013876,2]
[338416486,1726624234093,-644.322379,0.00013876,2]
[338416487,1726624234102,-583.29079,0.00013876,2]
[338416488,1726624234112,-7150.305329,0.00013876,2]
[338416489,1726624234122,-150.0,0.00013876,2]
[338416490,1726624234131,-796.0,0.0001388,2]
[338416491,1726624234141,-150.0,0.00013885,2]
[338416492,1726624234152,-150.0,0.00013897,2]
[338416493,1726624234162,-151.0,0.000139,2]
[338416494,1726624234171,-151.0,0.000139,2]
[338416495,1726624234181,-151.0,0.000139,2]
[338416496,1726624234191,-151.0,0.000139,2]
[338416497,1726624234200,-451.0,0.000139,2]
[338416498,1726624234209,-1331.85787441,0.00013901,2]
[338416499,1726624234218,-2000.0,0.00013904,2]
[338416500,1726624234228,-2000.0,0.00013904,2]
[338416501,1726624234238,-2000.0,0.00013904,2]
[338416502,1726624234247,-2000.0,0.00013905,2]
[338416503,1726624234257,-500.0,0.00013905,2]
[338416504,1726624234267,-2000.0,0.00013905,2]
[338416505,1726624234276,-2000.0,0.00013905,2]
[338416506,1726624234287,-2000.0,0.00013905,2]
[338416507,1726624234297,-2000.0,0.00013905,2]
[338416508,1726624234307,-500.0,0.00013905,2]
[338416509,1726624234317,-150.0,0.00013925,2]
[338416510,1726624234327,-150.0,0.00013928,2]
[338416511,1726624234337,-150.0,0.00013936,2]
[338416512,1726624234348,-1000.0,0.00013939,2]
[338416513,1726624234357,-1000.0,0.00013939,2]
[338416514,1726624234367,-1000.0,0.00013939,2]
[338416515,1726624234377,-1000.0,0.00013939,2]
[338416516,1726624234386,-1000.0,0.00013939,2]
[338416517,1726624234396,-1000.0,0.00013939,2]
[338416518,1726624234405,-1000.0,0.00013939,2]
[338416519,1726624234415,-1000.0,0.00013939,2]
[338416520,1726624234424,-1000.0,0.00013939,2]
[338416521,1726624234433,-1000.0,0.00013939,2]
[338416522,1726624234442,-1000.0,0.00013939,2]
[338416523,1726624234452,-1000.0,0.00013939,2]
[338416524,1726624234463,-1000.0,0.00013939,2]
[338416525,1726624234472,-1000.0,0.00013939,2]
[338416526,1726624234481,-1000.0,0.00013939,2]
[338416527,1726624234494,-150.0,0.00013939,2]
[338416528,1726624234503,-150.0,0.0001396,2]
[338416529,1726624234513,-150.0,0.00013964,2]
[338416530,1726624234523,-150.0,0.00013967,2]
[338416531,1726624234535,-150.0,0.00013967,2]
[338416532,1726624234544,-150.0,0.0001399,2]
[338416533,1726624234554,-150.0,0.00014,2]
[338416534,1726624234564,-150.0,0.00014004,2]
[338416535,1726624234574,-223.66849499,0.00014016,2]
[338416536,1726624234583,-194.2410121,0.00014016,2]
[338416537,1726624234593,-861.7471449,0.00014016,2]
[338416538,1726624234602,-200.0,0.00014017,2]
[338416539,1726624234611,-2000.0,0.00014017,2]
[338416540,1726624234621,-200.0,0.00014017,2]
[338416541,1726624234630,-176.05263805,0.00014017,2]
[338416542,1726624234639,-150.0,0.00014017,2]
[338416543,1726624234648,-150.0,0.00014017,2]
[338416544,1726624234657,-150.0,0.00014017,2]
[338416545,1726624234667,-150.0,0.00014017,2]
[338416546,1726624234676,-274.09013422,0.00014017,2]
[338416547,1726624234685,-150.0,0.00014017,2]
[338416548,1726624234694,-150.0,0.00014017,2]
[338416549,1726624234703,-150.0,0.00014017,2]
[338416550,1726624234712,-150.0,0.00014017,2]
[338416551,1726624234722,-150.52431748,0.00014017,2]
[338416552,1726624234731,-150.0,0.00014017,2]
[338416553,1726624234741,-163.3193158,0.00014017,2]
[338416554,1726624234751,-150.0,0.00014017,2]
[338416555,1726624234761,-1331.85787441,0.00014026,2]
[338416556,1726624234770,-151.0,0.00014047,2]
[338416557,1726624234779,-151.0,0.00014047,2]
[338416558,1726624234788,-151.0,0.00014047,2]
[338416559,1726624234798,-19948.843114,0.00014047,2]
[338416560,1726624234807,-151.0,0.00014047,2]
[338416561,1726624234816,-322.413552,0.00014047,2]
[338416562,1726624234826,-14313.537781,0.00014047,2]
[338416563,1726624234835,-644.322379,0.00014047,2]
[338416564,1726624234845,-583.29079,0.00014047,2]
[338416565,1726624234854,-7150.305329,0.00014047,2]
[338416566,1726624234863,-175.73377,0.0001405,2]
[338416567,1726624234873,-500.0,0.00014073,2]
[338416568,1726624234883,-500.0,0.00014082,2]
[338416569,1726624234894,-500.0,0.0001409,2]
[338416570,1726624234903,-500.0,0.00014099,2]
[338416571,1726624234913,-255.0,0.00014104,2]
[338416572,1726624234923,-500.0,0.00014108,2]
[338416573,1726624234932,-183.60862713,0.00014113,2]
[338416574,1726624234941,-500.0,0.00014117,2]
[338416575,1726624234951,-500.0,0.00014126,2]
[338416576,1726624234961,-150.01,0.00014127,2]
[338416577,1726624234971,-176.05263805,0.00014128,2]
[338416578,1726624234981,-500.0,0.00014134,2]
[338416579,1726624234990,-500.0,0.00014143,2]
[338416580,1726624234999,-1331.85787441,0.00014151,2]